bitfinex/quotes_SOLUSD_20250619
["timestamp","ask_amount","ask_price","bid_price","bid_amount"]
[1750349872823,39.56671529,144.27,144.22,6.93385106]
[1750349872824,11.40671529,144.25,144.22,6.93385106]
[1750349872990,28.16,144.27,144.22,6.93385106]
[1750349873316,11.40671529,144.25,144.22,6.93385106]
[1750349874112,11.40671529,144.26,144.22,18.34056635]
[1750349875817,11.40671529,144.26,144.22,35.675194]
[1750349879125,39.54671529,144.27,144.23,11.40671529]
[1750349879490,39.54671529,144.27,144.24,6.93288962]
[1750349879894,5.18268537,144.28,144.24,6.93288962]
[1750349879895,5.18268537,144.28,144.25,11.40671529]
[1750349880097,28.14,144.28,144.24,35.67182898]
[1750349880296,39.54671529,144.28,144.24,35.67182898]
[1750349880813,44.72940066,144.28,144.24,35.67182898]
[1750349881016,16.58940066,144.28,144.24,35.67182898]
[1750349881213,39.56671529,144.28,144.24,35.67182898]
[1750349881605,44.74940066,144.28,144.24,35.67182898]
[1750349882427,33.34268537,144.28,144.25,11.40671529]
[1750349882599,44.74940066,144.28,144.24,35.67182898]
[1750349882793,44.74940066,144.28,144.24,6.93288962]
[1750349883226,39.56671529,144.28,144.24,6.93288962]
[1750349883523,39.56671529,144.28,144.24,18.33960491]
[1750349884705,39.56671529,144.28,144.24,35.67182898]
[1750349886227,34.12,144.29,144.26,11.40671529]
[1750349886530,34.12,144.29,144.27,6.93144797]
[1750349887030,34.12,144.29,144.27,18.33816326]
[1750349889233,5.17961087,144.3,144.28,11.40671529]
[1750349889548,28.16,144.32,144.29,11.40671529]
[1750349889701,28.16,144.32,144.27,35.6667832]
[1750349889702,28.16,144.32,144.3,11.40671529]
[1750349890132,5.17961087,144.33,144.29,11.40671529]
[1750349890302,28.18,144.32,144.29,11.40671529]
[1750349890499,28.18,144.32,144.3,11.40671529]
[1750349890730,33.33961087,144.33,144.31,11.40671529]
[1750349890959,28.16,144.33,144.31,11.40671529]
[1750349891256,1.4788582,144.34,144.31,11.40671529]
[1750349891467,28.18,144.33,144.32,6.92904656]
[1750349892104,28.18,144.33,144.31,18.33608287]
[1750349892516,28.18,144.33,144.31,6.92936758]
[1750349894211,29.6588582,144.34,144.31,18.33608287]
[1750349894533,29.6388582,144.34,144.31,6.92936758]
[1750349895133,29.6388582,144.34,144.32,11.40671529]
[1750349895439,1.4788582,144.34,144.32,11.40671529]
[1750349895623,1.4788582,144.34,144.31,18.33608287]
[1750349895814,1.4788582,144.34,144.32,11.40671529]
[1750349897924,1.4788582,144.34,144.32,18.33538354]
[1750349898128,1.4788582,144.34,144.32,6.92866825]
[1750349899416,1.4788582,144.34,144.31,18.33615035]
[1750349899850,12.88557349,144.34,144.3,18.3364932]
[1750349900744,1.4788582,144.34,144.31,11.40671529]
[1750349900946,1.4788582,144.34,144.3,6.92977791]
[1750349901119,1.4788582,144.34,144.31,11.40671529]
[1750349901938,1.4788582,144.34,144.31,18.33585718]
[1750349902764,1.4788582,144.34,144.31,6.92914189]
[1750349903047,1.4788582,144.34,144.31,32.92914189]
[1750349903459,12.88557349,144.34,144.31,26.0]
[1750349903939,41.04557349,144.34,144.31,32.92944521]
[1750349905426,41.04557349,144.34,144.31,26.0]
[1750349905836,29.6388582,144.34,144.31,32.92943836]
[1750349906047,11.40671529,144.32,144.29,1.6617]
[1750349906250,11.40671529,144.3,144.24,100.63591529]
[1750349906447,11.40671529,144.27,144.24,8.46192536]
[1750349906663,11.40671529,144.25,144.21,6.93433187]
[1750349906871,11.40671529,144.22,144.2,6.93464448]
[1750349907528,11.40671529,144.23,144.2,6.93464448]
[1750349908748,11.40671529,144.22,144.2,6.93464448]
[1750349909971,11.40671529,144.22,144.19,6.9352937]
[1750349910170,11.40671529,144.23,144.19,18.34200899]
[1750349910680,7.8768,144.3,144.22,37.40671529]
[1750349910859,11.40671529,144.27,144.22,37.40671529]
[1750349911057,11.40671529,144.27,144.23,11.40671529]
[1750349911271,11.40671529,144.26,144.22,37.40671529]
[1750349911778,11.40671529,144.26,144.23,6.93337031]
[1750349912687,11.40671529,144.27,144.23,18.3400856]
[1750349915280,11.40671529,144.27,144.23,6.93337031]
[1750349915476,11.40671529,144.26,144.23,6.93337031]
[1750349916275,11.40671529,144.26,144.22,37.40671529]
[1750349916276,11.40671529,144.26,144.22,44.34048957]
[1750349916464,11.40671529,144.25,144.21,11.40671529]
[1750349916671,11.40671529,144.25,144.2,6.93481276]
[1750349916875,11.40671529,144.24,144.2,18.34152805]
[1750349917373,11.40671529,144.25,144.21,11.40671529]
[1750349917571,11.40671529,144.25,144.2,6.93481276]
[1750349917762,11.40671529,144.25,144.22,6.93385106]
[1750349917957,11.40671529,144.25,144.21,11.40671529]
[1750349917958,11.40671529,144.25,144.21,18.34086432]
[1750349918190,11.40671529,144.24,144.21,6.93414903]
[1750349918380,11.40671529,144.23,144.2,6.93465737]
[1750349921067,11.40671529,144.24,144.2,6.93465737]
[1750349921488,11.40671529,144.24,144.19,6.9352937]
[1750349921776,18.33962216,144.24,144.19,18.34200899]
[1750349921977,11.40671529,144.24,144.19,18.34200899]
[1750349923070,11.40671529,144.24,144.19,6.9352937]
[1750349923291,11.40671529,144.24,144.19,18.34200899]
[1750349924403,11.40671529,144.22,144.16,1.5292]
[1750349924600,18.64964886,144.24,144.16,19.87247334]
[1750349924601,11.40671529,144.2,144.16,19.87247334]
[1750349925994,6.93433453,144.21,144.16,19.87247334]
[1750349926194,11.40671529,144.2,144.16,19.87247334]
[1750349929778,11.40671529,144.2,144.16,8.46575805]
[1750349929982,11.40671529,144.19,144.16,6.93655805]
[1750349930774,11.40671529,144.18,144.15,14.54911703]
[1750349930979,11.40671529,144.18,144.15,6.93700854]
[1750349931180,11.40671529,144.18,144.14,44.34419963]
[1750349931494,11.40671529,144.19,144.15,11.40671529]
[1750349932094,18.64964886,144.22,144.16,11.40671529]
[1750349932298,11.40671529,144.2,144.16,11.40671529]
[1750349932510,11.40671529,144.19,144.16,11.40671529]
[1750349933010,11.40671529,144.19,144.17,6.9362558]
[1750349934119,11.40671529,144.2,144.17,6.9362558]
[1750349934312,11.40671529,144.19,144.16,6.93659266]
[1750349935910,6.9343403,144.21,144.16,6.93659266]
[1750349936113,11.40671529,144.19,144.16,6.93659266]
[1750349936310,25.58359888,144.22,144.16,18.34330795]
[1750349936510,12.91366473,144.23,144.18,11.40671529]
[1750349936716,11.40671529,144.21,144.17,11.40671529]
[1750349936917,11.40671529,144.2,144.16,18.34330795]
[1750349938511,11.40671529,144.19,144.15,18.34372541]
[1750349938689,11.40671529,144.19,144.14,32.9374623]
[1750349938888,25.58349992,144.22,144.14,44.34417759]
[1750349939109,11.40671529,144.18,144.14,44.34417759]
[1750349939520,11.40671529,144.17,144.13,19.99570011]
[1750349940721,11.40671529,144.19,144.15,11.40671529]
[1750349940925,11.40671529,144.2,144.16,11.40671529]
[1750349941932,11.40671529,144.2,144.16,18.34301585]
[1750349942930,25.58398073,144.21,144.16,18.34301585]
[1750349943126,11.40671529,144.2,144.16,18.34301585]
[1750349945915,18.34159469,144.2,144.16,6.93630056]
[1750349946321,18.34159469,144.2,144.15,11.40671529]
[1750349946322,11.40671529,144.19,144.15,11.40671529]
[1750349946926,11.40671529,144.19,144.15,18.34389882]
[1750349947544,11.40671529,144.19,144.15,11.40671529]
[1750349947745,11.40671529,144.17,144.13,8.83995849]
[1750349947931,11.40671529,144.16,144.13,8.83995849]
[1750349949029,11.40671529,144.15,144.11,6.93894167]
[1750349949230,11.40671529,144.15,144.1,11.40671529]
[1750349949433,11.40671529,144.12,144.09,1.5865]
[1750349949748,11.40671529,144.11,144.07,11.40671529]
[1750349949941,11.40671529,144.12,144.08,11.40671529]
[1750349950120,14.07139327,144.19,144.11,11.40671529]
[1750349950335,84.25636415,144.18,144.13,11.40671529]
[1750349950551,11.40671529,144.17,144.13,11.40671529]
[1750349950751,16.58214856,144.17,144.13,11.40671529]
[1750349951045,91.19240523,144.18,144.13,11.40671529]
[1750349951438,11.40671529,144.16,144.12,18.34504316]
[1750349952334,11.40671529,144.16,144.11,8.52547565]
[1750349952530,11.40671529,144.14,144.11,1.5865]
[1750349952733,11.40671529,144.15,144.11,8.52559615]
[1750349952928,11.40671529,144.15,144.11,6.93909615]
[1750349953127,25.58653584,144.16,144.11,6.93909615]
[1750349953334,11.40671529,144.15,144.11,6.93909615]
[1750349953650,11.40671529,144.14,144.09,11.40671529]
[1750349954027,11.40671529,144.14,144.1,11.40671529]
[1750349956633,11.40671529,144.11,144.07,19.93409184]
[1750349957932,11.40671529,144.1,144.07,1.5865]
[1750349958729,18.34634978,144.1,144.05,50.66011443]
[1750349958926,11.40671529,144.09,144.05,24.66011443]
[1750349959131,11.40671529,144.09,144.05,6.31158127]
[1750349959541,11.40671529,144.08,144.05,6.31158127]
[1750349959730,11.40671529,144.07,144.05,6.31158127]
[1750349960030,11.40671529,144.06,144.03,1.5554]
[1750349960326,11.40671529,144.07,144.03,8.49836159]
[1750349960857,11.40671529,144.08,144.03,19.90507688]
[1750349961150,11.40671529,144.08,144.04,11.40671529]
[1750349961348,39.62671529,144.09,144.04,11.40671529]
[1750349961654,11.40671529,144.08,144.04,11.40671529]
[1750349962158,11.40671529,144.08,144.03,8.49836159]
[1750349962460,11.40671529,144.08,144.04,18.34914773]
[1750349962848,11.40671529,144.07,144.03,12.96211529]
[1750349963048,11.40671529,144.07,144.03,8.49836915]
[1750349963251,11.40671529,144.06,144.03,1.5554]
[1750349963549,11.40671529,144.06,144.03,8.4983866]
[1750349965744,11.40671529,144.06,144.03,1.5554]
[1750349967274,11.40671529,144.06,144.03,8.49830423]
[1750349967638,18.64964886,144.08,144.03,19.90501952]
[1750349967841,1.5879,144.13,144.07,11.40671529]
[1750349968067,30.05636415,144.12,144.03,122.19830423]
[1750349968275,11.40671529,144.11,144.07,11.40671529]
[1750349968768,11.40671529,144.1,144.05,6.94203401]
[1750349968952,11.40671529,144.1,144.06,11.40671529]
[1750349969964,11.40671529,144.11,144.07,11.40671529]
[1750349970171,11.40671529,144.11,144.07,6.94093084]
[1750349970366,11.40671529,144.11,144.07,18.34764613]
[1750349974878,18.34588723,144.11,144.07,18.34764613]
[1750349976084,11.40671529,144.11,144.07,18.34764613]
[1750349977585,11.40671529,144.11,144.07,6.94093084]
[1750349977785,11.40671529,144.11,144.07,18.34764613]
[1750349978295,11.40671529,144.11,144.06,11.40671529]
[1750349978296,11.40671529,144.1,144.06,11.40671529]
[1750349978497,11.40671529,144.1,144.05,18.34848781]
[1750349978795,11.40671529,144.1,144.06,11.40671529]
[1750349979501,11.40671529,144.1,144.06,18.34823993]
[1750349980399,18.34638778,144.1,144.06,18.34823993]
[1750349985509,25.58879256,144.11,144.06,18.34823993]
[1750349985702,11.40671529,144.1,144.06,18.34823993]
[1750349986599,18.34643169,144.1,144.06,18.34823993]
[1750349986795,18.34643169,144.1,144.06,11.40671529]
[1750349986996,11.40671529,144.09,144.06,11.40671529]
[1750349988190,11.40671529,144.07,144.03,100.66211529]
[1750349988391,11.40671529,144.07,144.03,12.96211529]
[1750349988598,11.40671529,144.07,144.03,19.90503529]
[1750349988997,6.9406887,144.08,144.03,19.90503529]
[1750349989215,11.40671529,144.07,144.03,19.90503529]
[1750349990196,11.40671529,144.07,144.03,8.49832]
[1750349990389,11.40671529,144.07,144.03,19.90503529]
[1750349991618,11.40671529,144.07,144.03,8.49832]
[1750349991922,11.40671529,144.07,144.03,19.90503529]
[1750349994222,18.34789359,144.07,144.03,12.96211529]
[1750349994521,11.40671529,144.06,144.03,1.5554]
[1750349995391,11.40671529,144.06,144.03,8.49836075]
[1750349995605,18.34789359,144.07,144.03,19.90507604]
[1750349996522,11.40671529,144.06,144.03,19.90507604]
[1750349996702,11.40671529,144.06,144.03,12.96211529]
[1750349997528,11.40671529,144.06,144.03,19.90510008]
[1750349998103,11.40671529,144.07,144.03,19.90510008]
[1750349998718,18.34784569,144.07,144.03,19.90510008]
[1750350000315,11.40671529,144.06,144.03,1.5554]
[1750350001720,6.9411304,144.07,144.02,11.40671529]
[1750350001917,11.40671529,144.06,144.02,11.40671529]
[1750350002507,11.40671529,144.06,144.02,18.35012171]
[1750350002810,11.40671529,144.07,144.03,11.40671529]
[1750350003010,23.54193433,144.08,144.04,11.40671529]
[1750350003219,11.40671529,144.07,144.03,11.40671529]
[1750350003825,11.40671529,144.07,144.03,18.34951909]
[1750350004211,11.40671529,144.07,144.04,11.40671529]
[1750350004412,18.34751582,144.08,144.04,11.40671529]
[1750350005318,18.34751582,144.08,144.01,17.35986395]
[1750350005518,18.34751582,144.08,144.04,11.40671529]
[1750350006236,18.34751582,144.08,144.01,17.35986395]
[1750350006534,11.40671529,144.08,144.04,11.40671529]
[1750350007244,11.40671529,144.07,144.03,11.40671529]
[1750350007951,5.19434928,144.08,144.06,11.40671529]
[1750350008116,46.07965189,144.12,144.07,11.40671529]
[1750350008320,11.40671529,144.11,144.07,11.40671529]
[1750350009345,11.40671529,144.11,144.06,11.40671529]
[1750350009644,11.40671529,144.1,144.06,11.40671529]
[1750350009844,11.40671529,144.1,144.05,11.40671529]
[1750350010026,11.40671529,144.1,144.05,18.3485581]
[1750350010348,18.34657494,144.1,144.06,11.40671529]
[1750350010546,11.40671529,144.09,144.05,11.40671529]
[1750350012044,6.94058856,144.08,144.05,11.40671529]
[1750350013933,18.34702247,144.09,144.05,11.40671529]
[1750350014460,23.54158399,144.09,144.05,11.40671529]
[1750350015360,18.34702247,144.09,144.05,11.40671529]
[1750350015868,11.40671529,144.09,144.05,18.34868107]
[1750350016674,11.40671529,144.09,144.05,6.94196578]
[1750350016884,18.34684785,144.09,144.05,6.94196578]
[1750350017044,23.54208371,144.09,144.05,18.34868107]
[1750350017361,23.54248801,144.09,144.05,18.34868107]
[1750350018389,23.54248801,144.09,144.02,26.0]
[1750350018390,30.05636415,144.08,144.02,26.0]
[1750350018677,11.40671529,144.06,144.02,11.40671529]
[1750350018845,11.40671529,144.07,144.03,11.40671529]
[1750350019468,5.19564016,144.08,144.05,11.40671529]
[1750350019647,12.13577272,144.09,144.06,11.40671529]
[1750350019845,23.54248801,144.09,144.05,11.40671529]
[1750350020250,5.19564016,144.09,144.06,18.34826742]
[1750350020659,51.7220008,144.1,144.06,18.34826742]
[1750350020955,5.19564016,144.09,144.06,11.40671529]
[1750350021467,18.34636064,144.1,144.06,11.40671529]
[1750350021671,23.54286195,144.1,144.06,11.40671529]
[1750350022267,23.54286195,144.1,144.05,6.94184434]
[1750350022462,23.54286195,144.1,144.05,18.34855963]
[1750350022851,12.13614666,144.1,144.06,11.40671529]
[1750350023057,11.40671529,144.09,144.05,18.34855963]
[1750350023579,18.64964886,144.03,143.93,1.506]
[1750350023746,18.64964886,144.03,143.91,13.13178743]
[1750350023747,11.40671529,143.96,143.91,13.13178743]
[1750350023951,11.40671529,143.95,143.9,11.40671529]
[1750350024261,11.40671529,143.94,143.9,11.40671529]
[1750350024583,16.12756065,143.94,143.9,37.40671529]
[1750350024882,11.40671529,143.93,143.89,8.45559865]
[1750350025171,11.40671529,143.93,143.89,32.94959865]
[1750350026377,11.40671529,143.93,143.89,6.94959865]
[1750350026576,11.40671529,143.91,143.86,1.5514]
[1750350026776,25.5967026,143.95,143.88,11.40671529]
[1750350026777,11.40671529,143.92,143.88,11.40671529]
[1750350027779,11.40671529,143.93,143.89,11.40671529]
[1750350028280,11.40671529,143.93,143.89,18.3561167]
[1750350028652,11.40671529,143.93,143.89,6.94940141]
[1750350029176,11.40671529,143.92,143.88,6.95008563]
[1750350029684,11.40671529,143.92,143.88,18.35680092]
[1750350030065,11.40671529,143.92,143.88,6.95008563]
[1750350030383,39.64671529,143.92,143.88,6.95008563]
[1750350030582,11.40671529,143.91,143.87,18.35732039]
[1750350030975,11.40671529,143.9,143.86,32.95102907]
[1750350031496,6.0996,143.94,143.87,11.40671529]
[1750350031666,18.64964886,143.95,143.86,50.32903546]
[1750350031667,39.64671529,143.93,143.89,11.40671529]
[1750350031983,39.64671529,143.93,143.88,11.40671529]
[1750350031984,11.40671529,143.92,143.88,11.40671529]
[1750350032393,11.40671529,143.92,143.88,18.35658616]
[1750350033594,39.64671529,143.92,143.88,18.35658616]
[1750350034096,39.64671529,143.92,143.87,6.95071939]
[1750350034289,28.24,143.92,143.88,11.40671529]
[1750350034597,39.64671529,143.92,143.88,11.40671529]
[1750350035568,11.40671529,143.91,143.87,18.35743468]
[1750350035799,11.40671529,143.91,143.87,6.95071939]
[1750350035966,11.40671529,143.9,143.87,6.95071939]
[1750350036568,11.40671529,143.89,143.86,6.95091482]
[1750350038722,18.64964886,143.91,143.86,6.95091482]
[1750350038904,11.40671529,143.9,143.86,18.35763011]
[1750350040813,11.40671529,143.9,143.86,6.95091482]
[1750350041013,11.40671529,143.9,143.86,18.35763011]
[1750350041730,11.40671529,143.89,143.85,11.40671529]
[1750350042529,11.40671529,143.9,143.86,11.40671529]
[1750350043733,28.24,143.92,143.87,6.95071939]
[1750350044031,55.93141128,143.93,143.89,11.40671529]
[1750350044227,16.30469599,143.93,143.9,11.40671529]
[1750350044437,10.30469599,143.93,143.92,11.40671529]
[1750350045125,10.30469599,143.93,143.89,26.0]
[1750350045335,10.30469599,143.93,143.92,11.40671529]
[1750350045713,10.30469599,143.93,143.92,18.3550199]
[1750350047430,10.30469599,143.93,143.92,29.76173519]
[1750350048617,19.00691529,144.0,143.92,73.13249672]
[1750350048833,35.8602,144.0,143.97,11.40671529]
[1750350049125,6.0,144.0,143.98,11.40671529]
[1750350049834,6.0,144.0,143.99,11.40671529]
[1750350051135,6.0,144.0,143.99,18.35164202]
[1750350051733,12.96231529,144.04,143.99,18.35164202]
[1750350051945,41.22231529,144.04,143.99,18.35164202]
[1750350052652,12.96231529,144.04,143.99,18.35164202]
[1750350052955,28.26,144.03,143.99,18.35164202]
[1750350053337,11.40671529,144.02,143.98,6.9452377]
[1750350053542,11.40671529,144.02,143.98,18.35195299]
[1750350053743,8.49822289,144.04,143.98,18.35195299]
[1750350054060,39.66671529,144.03,143.99,11.40671529]
[1750350055271,39.66671529,144.03,143.99,18.35148098]
[1750350057836,28.26,144.03,143.99,18.35148098]
[1750350058037,39.66671529,144.03,143.99,18.35148098]
[1750350058459,28.24,144.03,144.01,11.40671529]
[1750350058646,61.18042357,144.05,144.02,11.40671529]
[1750350058846,28.24,144.04,144.02,11.40671529]
[1750350059354,89.42042357,144.05,144.02,11.40671529]
[1750350059556,100.82713886,144.05,144.01,11.40671529]
[1750350059968,100.82713886,144.05,144.03,11.40671529]
[1750350059969,16.16042357,144.05,144.03,11.40671529]
[1750350060354,10.16042357,144.05,144.04,18.34923125]
[1750350061153,10.16042357,144.05,144.0,132.61226109]
[1750350061349,21.56713886,144.05,144.01,11.40671529]
[1750350061552,10.16042357,144.05,144.02,11.40671529]
[1750350062954,10.16042357,144.05,144.04,11.40671529]
[1750350063170,28.24,144.06,144.04,11.40671529]
[1750350063768,6.0,144.08,144.05,11.40671529]
[1750350064077,28.24,144.07,144.05,11.40671529]
[1750350065160,24.34734384,144.08,144.04,18.34891222]
[1750350065349,28.24,144.07,144.04,18.34891222]
[1750350067280,24.34734384,144.08,144.04,18.34891222]
[1750350067450,28.24,144.07,144.04,18.34891222]
[1750350069470,28.24,144.07,144.05,11.40671529]
[1750350069672,28.24,144.07,144.04,6.94219693]
[1750350069974,34.22,144.08,144.06,11.40671529]
[1750350070146,11.40671529,144.1,144.06,11.40671529]
[1750350070345,28.22,144.09,144.06,11.40671529]
[1750350070586,18.64964886,144.12,144.08,11.40671529]
[1750350070777,6.4561,144.13,144.09,11.40671529]
[1750350070778,23.86281529,144.13,144.09,11.40671529]
[1750350070971,28.24,144.12,144.09,11.40671529]
[1750350071176,28.24,144.11,144.09,11.40671529]
[1750350071373,39.64671529,144.11,144.07,11.40671529]
[1750350071572,39.64671529,144.11,144.08,6.94058856]
[1750350072068,28.24,144.11,144.08,6.94058856]
[1750350072271,39.64671529,144.11,144.08,6.94058856]
[1750350073275,28.24,144.1,144.07,18.34765675]
[1750350074178,39.64671529,144.11,144.07,18.34765675]
[1750350074972,28.24,144.11,144.07,18.34765675]
[1750350075278,28.22,144.12,144.1,11.40671529]
[1750350075464,6.0,144.13,144.11,11.40671529]
[1750350075868,34.24,144.13,144.11,11.40671529]
[1750350076062,27.71644455,144.17,144.12,11.40671529]
[1750350076272,16.30972926,144.17,144.15,11.40671529]
[1750350076461,34.24,144.17,144.15,11.40671529]
[1750350076656,6.0,144.17,144.14,11.40671529]
[1750350076969,34.24,144.17,144.14,11.40671529]
[1750350077277,34.24,144.17,144.14,18.34427194]
[1750350078678,34.24,144.17,144.13,11.40671529]
[1750350078868,28.24,144.16,144.13,11.40671529]
[1750350079077,28.24,144.16,144.14,11.40671529]
[1750350079270,28.24,144.16,144.13,11.40671529]
[1750350081693,28.24,144.16,144.13,18.34471358]
[1750350081909,28.24,144.16,144.1,113.7]
[1750350082073,11.40671529,144.13,144.06,1.6388]
[1750350082405,39.62671529,144.13,144.09,11.40671529]
[1750350082584,11.40671529,144.12,144.07,18.3477856]
[1750350082785,28.22,144.13,144.07,18.3477856]
[1750350082786,11.40671529,144.11,144.07,18.3477856]
[1750350083203,28.24,144.1,144.07,18.3477856]
[1750350083501,39.64671529,144.1,144.06,18.34821986]
[1750350083874,28.24,144.1,144.06,18.34821986]
[1750350088612,52.58493009,144.13,144.09,11.40671529]
[1750350089184,34.24,144.13,144.09,11.40671529]
[1750350089431,52.58492837,144.13,144.08,11.40671529]
[1750350090430,45.64671529,144.13,144.09,18.34646068]
[1750350091242,6.0,144.13,144.11,11.40671529]
[1750350091408,6.0,144.13,144.12,11.40671529]
[1750350092304,28.24,144.15,144.12,11.40671529]
[1750350092503,28.24,144.15,144.12,18.34536798]
[1750350093513,28.24,144.15,144.12,11.40671529]
[1750350093709,39.64671529,144.15,144.11,18.3457088]
[1750350094612,18.34346198,144.16,144.12,11.40671529]
[1750350094808,28.24,144.15,144.11,18.3457088]
[1750350102360,39.64671529,144.15,144.11,18.3457088]
[1750350102724,28.24,144.15,144.11,18.3457088]
[1750350102925,39.64671529,144.15,144.11,18.3457088]
[1750350103954,28.2,144.15,144.11,18.3457088]
[1750350104854,39.60671529,144.15,144.11,18.3457088]
[1750350105345,28.2,144.15,144.11,18.3457088]
[1750350105544,28.2,144.15,144.11,6.93899351]
[1750350105745,28.2,144.15,144.11,18.3457088]
[1750350109134,24.34319151,144.17,144.12,11.40671529]
[1750350109339,32.94936763,144.16,144.13,11.40671529]
[1750350109537,6.0,144.17,144.14,11.40671529]
[1750350109740,28.2,144.16,144.14,11.40671529]
[1750350109937,6.0,144.17,144.15,11.40671529]
[1750350110143,10.75178479,144.17,144.15,11.40671529]
[1750350110363,6.0,144.17,144.15,11.40671529]
[1750350110658,10.75178479,144.17,144.15,11.40671529]
[1750350110850,6.0,144.17,144.15,11.40671529]
[1750350111236,6.0,144.17,144.15,18.34375125]
[1750350112651,11.1746397,144.22,144.16,11.40671529]
[1750350112963,35.5209487,144.21,144.18,11.40671529]
[1750350113275,7.3409487,144.2,144.18,11.40671529]
[1750350113667,4.7534182,144.2,144.18,11.40671529]
[1750350113974,6.0,144.22,144.19,11.40671529]
[1750350114286,6.0,144.22,144.2,18.34120383]
[1750350114448,41.53294431,144.22,144.2,18.34120383]
[1750350114644,34.2,144.22,144.2,18.34120383]
[1750350114848,6.0,144.22,144.2,18.34120383]
[1750350115273,13.34153369,144.22,144.2,18.34120383]
[1750350115474,6.0,144.22,144.2,18.34120383]
[1750350116451,6.0,144.22,144.2,11.40671529]
[1750350117081,6.0,144.22,144.21,11.40671529]
[1750350117580,50.33846827,144.27,144.21,11.40671529]
[1750350117770,35.52856122,144.26,144.22,11.40671529]
[1750350117961,28.2,144.26,144.22,11.40671529]
[1750350118289,28.2,144.26,144.23,11.40671529]
[1750350118986,39.60671529,144.26,144.22,11.40671529]
[1750350119154,11.40671529,144.24,144.2,19.98566667]
[1750350119567,28.2,144.24,144.21,11.40671529]
[1750350120368,28.2,144.24,144.21,18.34100115]
[1750350122098,28.2,144.24,144.22,11.40671529]
[1750350122299,28.18,144.26,144.23,18.3400594]
[1750350122601,34.18,144.27,144.24,11.40671529]
[1750350122903,34.2,144.27,144.24,11.40671529]
[1750350123224,22.6244036,144.28,144.24,11.40671529]
[1750350123415,28.18,144.28,144.24,11.40671529]
[1750350123570,5.98,144.3,144.24,11.40671529]
[1750350123777,24.31693351,144.3,144.25,11.40671529]
[1750350124073,39.58671529,144.29,144.25,11.40671529]
[1750350124467,11.40671529,144.28,144.24,11.40671529]
[1750350124876,11.40671529,144.28,144.23,11.40671529]
[1750350125270,39.58671529,144.28,144.23,11.40671529]
[1750350125471,11.40671529,144.27,144.23,11.40671529]
[1750350125811,28.18,144.28,144.19,18.34153663]
[1750350125976,11.40671529,144.25,144.21,11.40671529]
[1750350126308,28.2,144.24,144.21,11.40671529]
[1750350126484,28.2,144.24,144.21,18.34082216]
[1750350127522,28.2,144.24,144.17,1.6424]
[1750350127523,11.40671529,144.22,144.17,1.6424]
[1750350127816,11.40671529,144.21,144.17,8.5785935]
[1750350128119,11.40671529,144.2,144.16,18.34331497]
[1750350128622,39.60671529,144.21,144.16,18.34331497]
[1750350129403,39.60671529,144.21,144.17,11.40671529]
[1750350129822,39.60671529,144.21,144.17,18.34262623]
[1750350130402,28.2,144.21,144.17,18.34262623]
[1750350130604,28.2,144.21,144.19,11.40671529]
[1750350130804,39.60671529,144.23,144.19,11.40671529]
[1750350131000,11.40671529,144.23,144.19,11.40671529]
[1750350131306,39.62671529,144.23,144.19,11.40671529]
[1750350131606,39.62671529,144.23,144.2,6.93481276]
[1750350133014,5.98,144.24,144.21,11.40671529]
[1750350133210,28.2,144.23,144.2,18.34152805]
[1750350133726,28.2,144.23,144.19,18.34179105]
[1750350133909,11.40671529,144.23,144.19,18.34179105]
[1750350135019,11.40671529,144.21,144.17,18.34297109]
[1750350137409,11.40671529,144.19,144.15,11.40671529]
[1750350137830,11.40671529,144.19,144.15,37.40671529]
[1750350138510,11.40671529,144.19,144.15,44.34371585]
[1750350139711,11.40671529,144.19,144.15,18.34371585]
[1750350141021,11.40671529,144.19,144.15,6.93700056]
[1750350141439,11.40671529,144.19,144.15,18.34371585]
[1750350141840,11.40671529,144.2,144.16,11.40671529]
[1750350142846,11.40671529,144.19,144.15,18.34371585]
[1750350144930,39.62671529,144.2,144.16,11.40671529]
[1750350145331,39.62671529,144.2,144.17,6.9362558]
[1750350145739,39.62671529,144.2,144.17,18.34297109]
[1750350146133,28.22,144.2,144.17,18.34297109]
[1750350146647,39.62671529,144.2,144.16,18.34326811]
[1750350147148,39.62671529,144.2,144.16,6.93655282]
[1750350147330,39.62671529,144.2,144.16,18.34326811]
[1750350147950,39.62671529,144.2,144.16,6.93655282]
[1750350148129,11.40671529,144.18,144.15,6.93701329]
[1750350148644,11.40671529,144.18,144.14,6.93762524]
[1750350148828,11.40671529,144.18,144.14,18.34434053]
[1750350149034,11.40671529,144.19,144.14,18.34434053]
[1750350149236,11.40671529,144.19,144.15,11.40671529]
[1750350149827,11.40671529,144.19,144.15,18.34347881]
[1750350150149,39.62671529,144.2,144.16,11.40671529]
[1750350150544,39.62671529,144.2,144.15,18.34347881]
[1750350151442,11.40671529,144.2,144.16,11.40671529]
[1750350151850,39.62671529,144.21,144.16,11.40671529]